lending/lending_fUSD_20250621
["ID","MTS","AMOUNT","RATE_DAILY","PERIOD"]
[366840860,1750501832215,-310.0,0.00020493,2]
[366840862,1750501832224,-495.0,0.00020594,2]
[366840864,1750501832233,-2949.38677163,0.0002079,2]
[366840866,1750501832242,-980.4,0.00020812,2]
[366840868,1750501832252,-480.0,0.00021103,2]
[366840870,1750501832261,-220.2,0.00021189,2]
[366840872,1750501832270,-52523.18469372,0.00021214,2]
[366840874,1750501832281,-200.0,0.00021254,2]
[366840876,1750501832290,-250.0,0.00021254,2]
[366840878,1750501832299,-2021.08,0.00021254,2]
[366840880,1750501832308,-666.0,0.00021254,2]
[366840882,1750501832318,-1000.0,0.00021271,2]
[366840884,1750501832328,-200.0,0.00021297,6]
[366840886,1750501832337,-834.26476573,0.00021312,2]
[366840888,1750501832346,-245.77,0.0002132,2]
[366840890,1750501832358,-252.95,0.0002132,2]
[366840892,1750501832367,-254.85,0.0002132,2]
[366840894,1750501832376,-300.37,0.0002132,2]
[366840896,1750501832386,-247.06,0.0002132,2]
[366840898,1750501832395,-247.2,0.0002132,2]
[366840900,1750501832404,-253.19,0.0002132,2]
[366840902,1750501832413,-301.15,0.00021321,2]
[366840904,1750501832422,-300.93,0.00021321,2]
[366840906,1750501832432,-252.46,0.00021327,2]
[366840908,1750501832441,-249.91,0.00021327,2]
[366840909,1750501832450,-248.13,0.00021327,2]
[366840912,1750501832460,-300.95,0.00021335,2]
[366840914,1750501832471,-303.44,0.00021335,2]
[366840916,1750501832480,-253.95,0.00021375,2]
[366840917,1750501832490,-683.27164888,0.00021376,2]
[366840919,1750501832500,-246.27,0.00021398,2]
[366840921,1750501832510,-301.02,0.0002143,2]
[366840923,1750501832520,-23900.0,0.00021475,2]
[366840924,1750501832529,-150.0,0.00021485,2]
[366840925,1750501832539,-473.0,0.00021619,2]
[366840926,1750501832549,-473.0,0.00021642,2]
[366840927,1750501832560,-2751.0,0.0002173,2]
[366840928,1750501832570,-179.79,0.00021749,2]
[366840929,1750501832580,-1223.82,0.00021796,2]
[366840930,1750501832590,-683.27164885,0.00021834,2]
[366840931,1750501832599,-606.31,0.00021859,2]
[366840932,1750501832609,-167.15,0.00021892,2]
[366840933,1750501832619,-305.37,0.000219,2]
[366840934,1750501832630,-254.87,0.000219,2]
[366840935,1750501832640,-473.0,0.00021908,2]
[366840936,1750501832649,-9511.16,0.00021918,2]
[366840937,1750501832659,-428.7718523,0.00022,2]
[366840938,1750501832668,-561.34750148,0.0002201,2]
[366840939,1750501832677,-151.0,0.0002211,2]
[366840941,1750501832686,-1957.856,0.0002211,2]
[366840942,1750501832695,-500.0,0.0002211,2]
[366840943,1750501832704,-212.5793232,0.0002211,2]
[366840944,1750501832714,-500.0,0.0002211,2]
[366840945,1750501832724,-500.0,0.0002211,2]
[366840946,1750501832733,-500.0,0.0002211,2]
[366840947,1750501832743,-500.0,0.0002211,2]
[366840948,1750501832753,-500.0,0.0002211,2]
[366840949,1750501832763,-500.0,0.0002211,2]
[366840950,1750501832773,-500.0,0.0002211,2]
[366840951,1750501832783,-500.0,0.0002211,2]
[366840952,1750501832793,-221.01897641,0.0002211,2]
[366840953,1750501832802,-500.0,0.0002211,2]
[366840954,1750501832812,-300.0,0.0002211,2]
[366840955,1750501832821,-500.0,0.0002211,2]
[366840956,1750501832830,-500.0,0.0002211,2]
[366840957,1750501832840,-300.0,0.0002211,2]
[366840958,1750501832849,-500.0,0.0002211,2]
[366840959,1750501832859,-500.0,0.0002211,2]
[366840960,1750501832868,-300.0,0.0002211,2]
[366840961,1750501832877,-601.6306857,0.0002211,2]
[366840962,1750501832886,-300.0,0.0002211,2]
[366840963,1750501832896,-500.0,0.0002211,2]
[366840964,1750501832906,-300.0,0.0002211,2]
[366840965,1750501832915,-500.0,0.0002211,2]
[366840966,1750501832925,-300.0,0.0002211,2]
[366840967,1750501832935,-500.0,0.0002211,2]
[366840968,1750501832944,-300.0,0.0002211,2]
[366840969,1750501832954,-500.0,0.0002211,2]
[366840970,1750501832963,-300.0,0.0002211,2]
[366840971,1750501832972,-500.0,0.0002211,2]
[366840972,1750501832982,-300.0,0.0002211,2]
[366840973,1750501832992,-575.19762739,0.0002211,2]
[366840974,1750501833002,-300.0,0.0002211,2]
[366840975,1750501833011,-338.06867366,0.0002211,2]
[366840976,1750501833021,-300.0,0.0002211,2]
[366840977,1750501833031,-300.0,0.0002211,2]
[366840978,1750501833041,-300.0,0.0002211,2]
[366840979,1750501833051,-300.0,0.0002211,2]
[366840980,1750501833061,-300.0,0.0002211,2]
[366840981,1750501833070,-207.4,0.0002211,2]
[366840982,1750501833080,-168.0,0.00022126,2]
[366840983,1750501833090,-2030.296672,0.00022165,2]
[366840984,1750501833099,-2105.41764886,0.0002222,2]
[366840985,1750501833108,-2183.31810187,0.00022275,2]
[366840986,1750501833118,-200.0,0.00022289,7]
[366840987,1750501833128,-683.27164885,0.00022292,2]
[366840988,1750501833138,-473.0,0.000223,2]
[366840989,1750501833148,-2264.10087164,0.0002233,2]
[366840990,1750501833158,-473.0,0.00022332,2]
[366840991,1750501833167,-2347.87260389,0.00022385,2]
[366840992,1750501833177,-2434.74389024,0.0002244,2]
[366840993,1750501833187,-2524.82941417,0.00022495,2]
[366840994,1750501833196,-2618.2481025,0.0002255,2]
[366840995,1750501833206,-500.0,0.00022557,2]
[366840996,1750501833215,-500.0,0.00022557,2]
[366840997,1750501833225,-150.99,0.00022562,2]
[366840998,1750501833234,-541.4345,0.000226,2]
[366840999,1750501833245,-2715.12328229,0.00022605,2]
[366841000,1750501833255,-2815.58284374,0.0002266,2]
[366841001,1750501833264,-1985.51402267,0.000227,7]
[366841002,1750501833274,-1985.51402248,0.000227,7]
[366841003,1750501833284,-1985.51402248,0.000227,7]
[366841004,1750501833294,-1985.51402248,0.000227,7]
[366841005,1750501833304,-1985.51402248,0.000227,7]
[366841006,1750501833314,-1985.51402248,0.000227,7]
[366841007,1750501833323,-1985.51402248,0.000227,7]
[366841008,1750501833331,-834.26476573,0.000227,7]
[366841009,1750501833341,-1985.51402248,0.000227,7]
[366841010,1750501833351,-1985.51402248,0.000227,7]
[366841011,1750501833364,-2919.75940895,0.00022715,2]
[366841012,1750501833374,-683.27164885,0.00022751,2]
[366841013,1750501833384,-514.0,0.0002276,7]
[366841014,1750501833394,-3027.79050709,0.0002277,2]
[366841015,1750501833405,-177.09084786,0.000228,2]
[366841016,1750501833415,-168.0,0.00022804,2]
[366841017,1750501833424,-3139.81875585,0.00022825,2]
[366841018,1750501833435,-168.0,0.00022858,2]
[366841019,1750501833444,-2953.751565,0.0002288,2]
[366841020,1750501833453,-4487.8417968,0.000229,2]
[366841021,1750501833463,-4487.84179675,0.000229,2]
[366841022,1750501833473,-4487.84179675,0.000229,2]
[366841023,1750501833482,-4487.84179675,0.000229,2]
[366841024,1750501833491,-4487.84179675,0.000229,2]
[366841025,1750501833500,-4487.84179675,0.000229,2]
[366841026,1750501833510,-4487.84179675,0.000229,2]
[366841027,1750501833520,-4487.84179675,0.000229,2]
[366841028,1750501833530,-4487.84179675,0.000229,2]
[366841029,1750501833540,-4487.84179675,0.000229,2]
[366841030,1750501833549,-168.0,0.00022923,2]
[366841031,1750501833559,-4487.84179675,0.00022976,2]
[366841032,1750501833569,-3505.10244568,0.00023027,2]
[366841033,1750501833579,-1985.51402248,0.00023107,8]
[366841034,1750501833589,-150.0,0.00023116,2]
[366841035,1750501833598,-926.36,0.00023172,2]
[366841036,1750501833608,-683.27164885,0.00023209,2]
[366841037,1750501833617,-168.0,0.00023224,2]
[366841038,1750501833626,-200.0,0.00023282,8]
[366841039,1750501833636,-168.0,0.00023383,2]
[366841040,1750501833646,-980.4,0.00023414,2]
[366841041,1750501833656,-156.587,0.00023479,2]
[366841042,1750501833667,-215.0738,0.00023479,2]
[366841043,1750501833676,-168.0,0.00023534,2]
[366841044,1750501833686,-683.27164885,0.00023667,2]
[366841045,1750501833696,-514.0,0.00023734,2]
[366841046,1750501833706,-1985.51402248,0.00023797,9]
[366841047,1750501833715,-4787.21255326,0.000238,7]
[366841048,1750501833725,-1000.0,0.00023929,2]
[366841049,1750501833735,-814.0,0.00023931,2]
[366841050,1750501833744,-638.0,0.00023931,2]
[366841051,1750501833755,-559.0,0.00023931,2]
[366841052,1750501833765,-591.0,0.00023931,2]
[366841053,1750501833775,-1278.0,0.00023931,2]
[366841054,1750501833784,-2005.0,0.00023931,2]
[366841055,1750501833794,-955.378,0.00023931,2]
[366841056,1750501833804,-1676.0,0.00023931,2]
[366841057,1750501833813,-1161.0,0.00023931,2]
[366841058,1750501833823,-155.406,0.00023931,2]
[366841059,1750501833833,-4095.0,0.00023931,2]
[366841060,1750501833842,-3335.0,0.00023931,2]
[366841061,1750501833852,-946.0,0.00023931,2]
[366841062,1750501833861,-2500.0,0.00023937,2]
[366841063,1750501833871,-150.0,0.00023938,2]
[366841064,1750501833881,-150.0,0.00023938,2]
[366841065,1750501833891,-151.05,0.00023938,2]
[366841066,1750501833901,-150.0,0.00023938,2]
[366841067,1750501833911,-170.87,0.00023938,2]
[366841068,1750501833921,-455.2,0.00023938,2]
[366841069,1750501833931,-170.94,0.00023938,2]
[366841070,1750501833942,-709.46,0.00023938,2]
[366841071,1750501833952,-455.52,0.00023938,2]
[366841072,1750501833961,-170.94,0.00023938,2]
[366841073,1750501833971,-341.68,0.00023938,2]
[366841074,1750501833981,-170.94,0.00023938,2]
[366841075,1750501833991,-170.94,0.00023938,2]
[366841076,1750501834001,-709.32,0.00023938,2]
[366841077,1750501834010,-170.94,0.00023938,2]
[366841078,1750501834020,-170.94,0.00023938,2]
[366841079,1750501834030,-455.52,0.00023938,2]
[366841080,1750501834040,-455.28,0.00023938,2]
[366841081,1750501834050,-170.94,0.00023938,2]
[366841082,1750501834060,-355.03,0.00023963,2]
[366841083,1750501834069,-356.88,0.00023963,2]
[366841084,1750501834079,-23275.6560645,0.00023967,2]
[366841085,1750501834089,-200.0,0.00023975,2]
[366841086,1750501834098,-1000.0,0.00024,2]
[366841087,1750501834108,-14380.47321915,0.00024,5]
[366841088,1750501834119,-546.57570738,0.00024025,2]
[366841089,1750501834129,-533.37317625,0.00024092,2]
[366841090,1750501834139,-546.57570731,0.00024111,2]
[366841091,1750501834150,-683.27164885,0.00024125,2]
[366841092,1750501834160,-1598.67,0.00024127,2]
[366841093,1750501834170,-900.251,0.00024172,6]
[366841094,1750501834181,-248.32,0.00024192,2]
[366841095,1750501834191,-303.74,0.00024192,2]
[366841096,1750501834201,-245.06,0.00024192,2]
[366841097,1750501834210,-546.57570731,0.00024197,2]
[366841098,1750501834220,-514.0,0.00024233,2]
[366841099,1750501834230,-200.0,0.00024274,10]
[366841100,1750501834240,-546.57570731,0.00024283,2]
[366841101,1750501834250,-600.0,0.000243,8]
[366841102,1750501834259,-546.57570731,0.00024369,2]
[366841103,1750501834269,-1200.0,0.000244,8]
[366841104,1750501834278,-546.57570731,0.00024456,2]
[366841105,1750501834288,-1985.51402248,0.00024486,11]
[366841106,1750501834298,-1800.0,0.000245,8]
[366841107,1750501834308,-15797.01863965,0.000245,2]
[366841108,1750501834317,-2000.0,0.00024502,2]
[366841109,1750501834327,-200.0,0.00024502,2]
[366841110,1750501834336,-546.57570731,0.00024542,2]
[366841111,1750501834346,-160688.94577382,0.00024557,2]
[366841112,1750501835234,-400.0,0.00024557,2]
[366841113,1750501835250,-26917.98252618,0.00024557,2]
[366841114,1750501835259,-846.55947755,0.00024564,2]
[366841115,1750501835269,-683.27164885,0.00024584,2]
[366841116,1750501835279,-2952.53345492,0.00024587,2]
[366841117,1750501835288,-7173.4589,0.00024587,2]
[366841118,1750501835298,-5000.0,0.00024587,2]
[366841119,1750501835307,-2952.53345492,0.00024594,2]
[366841120,1750501835317,-353.17756261,0.000246,2]
[366841121,1750501835326,-2400.0,0.000246,8]
[366841122,1750501835335,-2726.4531,0.000246,3]
[366841123,1750501835345,-2952.53345492,0.000246,2]
[366841124,1750501835354,-546.57570731,0.00024628,2]
[366841125,1750501835367,-1970.9126924,0.00024655,2]
[366841126,1750501835377,-223.925957,0.00024657,2]
[366841127,1750501835386,-19183.384691,0.00024657,2]
[366841128,1750501835396,-12275.58147101,0.00024657,2]
[366841129,1750501835444,-167.79087499,0.00024657,2]
[366841130,1750501835453,-151.678179,0.00024657,2]
[366841131,1750501835463,-549.04171695,0.00024673,2]
[366841132,1750501835472,-160.10967388,0.00024673,2]
[366841133,1750501835481,-30.86791105,0.00024673,2]
[366841134,1750501835532,-435.92376448,0.00024673,2]
[366841135,1750501835542,-160.17032508,0.00024673,2]
[366841136,1750501835552,-500.0,0.00024673,2]
[366841137,1750501835562,-171.56160926,0.00024677,2]
[366841138,1750501835571,-119.28784468,0.00024687,4]
[366841139,1750501835607,-1299.82981356,0.00024687,4]
[366841140,1750501835619,-2647.30347708,0.00024687,4]
[366841141,1750501835631,-27597.24339937,0.00024687,4]
[366841167,1750501839656,-1153.86737547,0.00023156,2]
[366841168,1750501839691,-707.19578163,0.00023156,2]
[366841169,1750501839755,-875.83448625,0.00023156,2]
[366841313,1750501985997,-309.82,0.00013699,2]
[366841905,1750502854467,286.730506,0.00022,30]
[366841910,1750503020731,-201.0,0.0001432,2]
[366841911,1750503020755,-2500.0,0.00014799,2]
[366841912,1750503020779,-250.0,0.00015,2]
[366841913,1750503020802,-2500.0,0.00015068,2]
[366841914,1750503020827,-201.0,0.00015522,3]
[366841915,1750503030266,-500.0,0.00016279,2]
[366841924,1750503032239,-201.0,0.00016724,5]
[366841925,1750503032249,-54.57028593,0.00017926,6]
[366841926,1750503032333,-146.42971407,0.00017926,6]
[366841927,1750503032343,-201.0,0.00019128,8]
[366841928,1750503032353,-151.0,0.00019178,2]
[366841929,1750503032363,-300.0,0.00019219,2]
[366841930,1750503032373,-1200.0,0.00019219,2]
[366841931,1750503032383,-805.90583993,0.0001922,2]
[366841932,1750503032394,-1694.09416007,0.0001922,2]
[366841933,1750503032404,-294.08478967,0.00020187,2]
[366841939,1750503032456,-15.73521033,0.00020187,2]
[366841941,1750503032466,-201.0,0.0002033,9]
[366841943,1750503032475,-834.26476573,0.00020578,2]
[366841945,1750503032485,-1200.0,0.00021045,2]
[366841947,1750503032495,-300.0,0.00021253,2]
[366841949,1750503032505,-201.0,0.00021532,11]
[366841951,1750503032514,-200.0,0.00021848,2]
[366841953,1750503032524,-388.57142396,0.00021886,2]
[366841958,1750503032562,-137.29857604,0.00021886,2]
[366841960,1750503032572,-250.0,0.00021905,2]
[366841962,1750503032582,-666.0,0.00021964,2]
[366841963,1750503032592,-742.41,0.00021976,2]
[366841964,1750503032603,-2215.33,0.00021991,2]
[366841965,1750503032613,-2511.0,0.00022,2]
[366841966,1750503032623,-5107.076134,0.00022038,2]
[366841967,1750503032635,-500.0,0.00022038,2]
[366841968,1750503032646,-462.62751342,0.00022038,2]
[366841969,1750503032670,-585.11857813,0.00022038,2]
[366841970,1750503032723,-3043.41777445,0.00022038,2]
[366841971,1750503032733,-13323.89,0.00022069,2]
[366841972,1750503032742,-155.42,0.00022086,2]
[366841973,1750503032752,-1105.0,0.00022086,2]
[366841974,1750503032763,-207.4,0.0002211,2]
[366841975,1750503032772,-1852.42,0.00022116,2]
[366841976,1750503032781,-151.0,0.00022294,2]
[366841977,1750503032791,-300.0,0.00022294,2]
[366841978,1750503032801,-300.0,0.00022294,2]
[366841979,1750503032810,-300.0,0.00022294,2]
[366841980,1750503032820,-300.0,0.00022294,2]
[366841981,1750503032829,-300.0,0.00022294,2]
[366841982,1750503032839,-300.0,0.00022294,2]
[366841983,1750503032851,-300.0,0.00022294,2]
[366841984,1750503032860,-300.0,0.00022294,2]
[366841985,1750503032869,-300.0,0.00022294,2]
[366841986,1750503032878,-300.0,0.00022294,2]
[366841987,1750503032887,-151.0,0.00022294,2]
[366841988,1750503032896,-300.0,0.00022294,2]
[366841989,1750503032906,-151.0,0.00022294,2]
[366841990,1750503032915,-300.0,0.00022294,2]
[366841991,1750503032924,-151.0,0.00022294,2]
[366841992,1750503032933,-300.0,0.00022294,2]
[366841993,1750503032942,-151.0,0.00022294,2]
[366841994,1750503032951,-300.0,0.00022294,2]
[366841995,1750503032960,-151.0,0.00022294,2]
[366841996,1750503032969,-300.0,0.00022294,2]
[366841997,1750503032978,-225.0,0.00022294,2]
[366841998,1750503032987,-2148.13312661,0.00022306,2]
[366841999,1750503032996,-23900.0,0.00022307,2]
[366842000,1750503033005,-834.26476573,0.000226,7]
[366842001,1750503033015,-1261.83052317,0.000226,7]
[366842002,1750503033024,-1261.83052309,0.000226,7]
[366842003,1750503033034,-1261.83052309,0.000226,7]
[366842004,1750503033045,-160.9236732,0.000226,7]
[366842005,1750503033058,-1100.90684989,0.000226,7]
[366842006,1750503033068,-1261.83052309,0.000226,7]
[366842007,1750503033078,-1261.83052309,0.000226,7]
[366842008,1750503033087,-1261.83052309,0.000226,7]
[366842009,1750503033097,-1261.83052309,0.000226,7]
[366842010,1750503033107,-1261.83052309,0.000226,7]
[366842011,1750503033117,-1480.11,0.00022654,2]
[366842012,1750503033126,-681.66,0.00022719,2]
[366842013,1750503033136,-681.66,0.00022725,2]
[366842014,1750503033145,-273.27096654,0.00022731,2]
[366842026,1750503037906,-408.38903346,0.00022731,2]
[366842027,1750503037915,-201.0,0.00022735,12]
[366842028,1750503037926,-681.66,0.00022737,2]
[366842029,1750503037938,-681.66,0.00022743,2]
[366842030,1750503037948,-681.66,0.00022749,2]
[366842031,1750503037957,-681.66,0.00022755,2]
[366842032,1750503037967,-681.66,0.00022761,2]
[366842034,1750503037976,-681.66,0.00022767,2]
[366842035,1750503037985,-438.75339246,0.00022773,2]
[366842037,1750503037996,-242.90660754,0.00022773,2]
[366842039,1750503038006,-339.11833824,0.00022779,2]
[366842045,1750503038059,-340.61242808,0.00022779,2]
[366842047,1750503038071,-1.92923368,0.00022779,2]
[366842049,1750503038080,-529.12076632,0.00022785,2]
[366842060,1750503038155,-152.53923368,0.00022785,2]
[366842062,1750503038165,-681.66,0.00022791,2]
[366842064,1750503038175,-362.17904698,0.00022797,2]
[366842075,1750503039750,-319.48095302,0.00022797,2]
[366842076,1750503039759,-290.01904698,0.00022803,2]
[366842077,1750503039770,-391.64095302,0.00022803,2]
[366842078,1750503039780,-681.66,0.00022808,2]
[366842079,1750503039789,-681.66,0.00022814,2]
[366842080,1750503039799,-681.66,0.0002282,2]
[366842081,1750503039808,-681.66,0.00022826,2]
[366842082,1750503039817,-1000.0,0.0002283,2]
[366842083,1750503039826,-681.66,0.00022832,2]
[366842084,1750503039835,-168.0,0.00022863,2]
[366842085,1750503039846,-2751.0,0.00022926,2]
[366842086,1750503039859,-160.75,0.00022927,2]
[366842087,1750503039868,-1261.83052309,0.00023107,8]
[366842088,1750503039878,-420.0,0.00023113,2]
[366842089,1750503039887,-245.28,0.00023156,2]
[366842090,1750503039898,-247.41,0.00023156,2]
[366842091,1750503039907,-245.88,0.00023156,2]
[366842092,1750503039917,-305.61,0.00023156,2]
[366842093,1750503039928,-248.87,0.00023156,2]
[366842094,1750503039939,-301.56,0.00023156,2]
[366842095,1750503039948,-253.45,0.00023156,2]
[366842096,1750503039958,-2513.12579946,0.00023419,2]
[366842097,1750503039969,-821.87420054,0.00023419,2]
[366842098,1750503039979,-946.0,0.00023419,2]
[366842099,1750503039988,-638.0,0.00023419,2]
[366842100,1750503039997,-803.0,0.00023419,2]
[366842101,1750503040006,-1161.0,0.00023419,2]
[366842102,1750503040016,-2005.0,0.00023419,2]
[366842103,1750503040026,-928.0,0.00023419,2]
[366842104,1750503040036,-591.0,0.00023419,2]
[366842105,1750503040046,-559.0,0.00023419,2]
[366842106,1750503040055,-1278.0,0.00023419,2]
[366842107,1750503040065,-1676.0,0.00023419,2]
[366842108,1750503040075,-178.746,0.00023419,2]
[366842109,1750503040084,-289.254,0.00023419,2]
[366842110,1750503040094,-690.69264376,0.00023419,2]
[366842111,1750503040308,-607.36,0.00023419,2]
[366842112,1750503040396,-875.81996469,0.00023419,2]
[366842113,1750503040408,-686.1,0.00023419,2]
[366842114,1750503040419,-1202.799999,0.00023419,2]
[366842115,1750503040431,-259.8878484,0.00023419,2]
[366842116,1750503040492,-581.34790231,0.00023419,2]
[366842117,1750503040504,-2034.47450012,0.00023419,2]
[366842118,1750503040530,-196.51714172,0.00023419,2]
[366842119,1750503040540,-855.0,0.00023419,2]
[366842120,1750503040550,-4095.0,0.00023419,2]
[366842121,1750503040560,-215.0738,0.00023479,2]
[366842122,1750503040569,-166.98,0.00023587,2]
[366842123,1750503040579,-156.587,0.00023663,2]
[366842124,1750503040589,-1261.83052309,0.00023797,9]
[366842125,1750503040598,-2000.0,0.000238,2]
[366842126,1750503040608,-364.5,0.00023836,2]
[366842127,1750503040618,-201.0,0.00023937,14]
[366842128,1750503040628,-163.55,0.00023938,2]
[366842129,1750503040638,-344.87,0.00023938,2]
[366842130,1750503040648,-163.55,0.00023963,2]
[366842131,1750503040657,-327.1,0.00023963,2]
[366842132,1750503040667,-188.62,0.00023974,2]
[366842133,1750503040677,-720.201,0.0002427,6]
[366842134,1750503040687,-300.0,0.000244,8]
[366842135,1750503040697,-13540.26,0.000244,2]
[366842136,1750503040707,-2050.33318889,0.00024413,2]
[366842137,1750503040716,-168.0,0.00024425,2]
[366842138,1750503040726,-2050.33318889,0.00024428,2]
[366842139,1750503040736,-182.85801,0.0002443,2]
[366842140,1750503040746,-2050.33318889,0.00024442,2]
[366842141,1750503040756,-39976.25397365,0.0002445,2]
[366842142,1750503040766,-2050.33318889,0.00024457,2]
[366842143,1750503040775,-2050.33318889,0.00024471,2]
[366842144,1750503040784,-1903.4143,0.00024473,2]
[366842145,1750503040794,-500.0,0.00024473,2]
[366842146,1750503040803,-2050.33318889,0.00024486,2]
[366842147,1750503040813,-1261.83052309,0.00024486,11]
[366842148,1750503040823,-600.0,0.000245,8]
[366842149,1750503040833,-2050.33318889,0.000245,2]
[366842150,1750503040843,-2000.0,0.00024502,2]
[366842151,1750503040856,-200.0,0.00024502,2]
[366842152,1750503040866,-2050.33318889,0.00024515,2]
[366842153,1750503040876,-2050.33318889,0.00024529,2]
[366842154,1750503040886,-2050.33318889,0.00024544,2]
[366842155,1750503040896,-2050.33318889,0.00024558,2]
[366842156,1750503040905,-868.56831125,0.00024571,2]
[366842157,1750503040915,-2050.33318889,0.00024573,2]
[366842158,1750503040925,-704.26701625,0.00024582,2]
[366842159,1750503040934,-480.03585858,0.00024582,2]
[366842160,1750503040944,-704.26701619,0.00024583,2]
[366842161,1750503040953,-704.26701619,0.00024583,2]
[366842162,1750503040963,-704.26701619,0.00024584,2]
[366842163,1750503040972,-704.26701619,0.00024584,2]
[366842164,1750503040981,-704.26701619,0.00024585,2]
[366842165,1750503040991,-704.26701619,0.00024585,2]
[366842166,1750503041000,-704.26701619,0.00024586,2]
[366842167,1750503041010,-704.26701619,0.00024586,2]
[366842168,1750503041019,-5000.0,0.00024587,2]
[366842169,1750503041028,-181.91852178,0.00024587,2]
[366842170,1750503041038,-302.72362512,0.00024587,2]
[366842171,1750503041047,-704.26701619,0.00024587,2]
[366842172,1750503041057,-2050.33318889,0.00024587,2]
[366842173,1750503041066,-163.6784675,0.00024587,4]
[366842174,1750503041076,-776.15161204,0.00024587,2]
[366842175,1750503041086,-5260.71331112,0.00024587,2]
[366842176,1750503041096,-579.12,0.000246,2]
[366842177,1750503041106,-900.0,0.000246,8]
[366842178,1750503041115,-169.048,0.0002465,2]
[366842179,1750503041125,-1000.0,0.00024658,2]
[366842180,1750503041135,-156.51971659,0.00024673,2]
[366842181,1750503041145,-519.7129137,0.00024673,2]
[366842182,1750503041155,-505.49621904,0.00024673,2]
[366842183,1750503041165,-161.76680069,0.00024673,2]
[366842184,1750503041175,-166.35309951,0.00024673,2]
[366842185,1750503041185,-532.74010869,0.00024673,2]
[366842186,1750503041195,-230.83963743,0.00024677,2]
[366842187,1750503041205,-123409.88090788,0.00024677,4]
[366842188,1750503041218,-744.96847343,0.00024677,4]
[366842189,1750503041235,-1414.5329418,0.00024677,4]
[366842190,1750503041246,-1033.23803428,0.00024677,4]
[366842191,1750503041976,205.0,0.0001432,2]
[366842210,1750503042798,-885.0,0.00023419,2]
[366842212,1750503042808,-84782.73683984,0.00024677,4]
[366842214,1750503042819,-634.57835052,0.00024677,4]
[366842216,1750503042831,-747.68985792,0.00024677,4]
[366842219,1750503042843,-578.70792701,0.00024677,4]
[366842241,1750503043042,-809.00115823,0.00024677,4]
[366842248,1750503043105,-122110.46923931,0.00024677,4]
[366842338,1750503046123,-247.41,0.00022731,2]
[366842340,1750503046133,-222.13018018,0.00024677,4]
[366842343,1750503046144,-904.64662748,0.00024677,4]
[366842347,1750503046181,-616.0,0.00024677,4]
[366842350,1750503046192,-400.0,0.00024677,4]
[366842356,1750503046246,-1435.71016166,0.00024677,4]
[366842359,1750503046257,-13835.00000001,0.00024677,4]
[366842361,1750503046269,-10218.22709186,0.00024677,4]
[366842363,1750503046280,-1421.44181112,0.00024677,4]
[366842368,1750503046315,-5266.11640763,0.00024677,4]
[366842370,1750503046326,-16029.08165461,0.00024677,4]
[366842372,1750503046337,-883.95788439,0.00024677,4]
[366842986,1750503696167,234.52284378,0.000246,120]
[366842988,1750503906987,-201.0,0.0001232,2]
[366842989,1750503929832,-237.6055,0.00013185,2]
[366842990,1750503929857,-150.0,0.00013252,2]
[366842991,1750503929883,-1200.0,0.00013252,2]
[366842992,1750503929908,-26379.8959907,0.00013253,2]
[366842993,1750503929933,-201.61767337,0.00013253,2]
[366842994,1750503937037,1470.0,0.00024658,120]
[366842995,1750503951030,1470.0,0.00024658,120]
[366842996,1750503958414,2450.0,0.00024658,120]
[366842997,1750503982929,3630.44,0.00024658,120]
[366842998,1750503987583,490.0,0.00024658,120]
[366843173,1750504231819,-201.0,0.00012682,2]